[Event "*** Titled Tuesday Blitz"]
[Site "Chess.com"]
[Date "2020.11.03"]
[Round "11"]
[White "GregShahade"]
[Black "IceBelka"]
[Result "1-0"]
[WhiteElo "2653"]
[BlackElo "2273"]
[TimeControl "180+1"]
[EndTime "12:10:47 PST"]
[Termination "GregShahade won by resignation"]

1. e4 {[%clk 0:03:00.9]} 1... c6 {[%clk 0:02:57.2]} 2. Nc3 {[%clk 0:03:00.4]}
2... d5 {[%clk 0:02:57.3]} 3. Nf3 {[%clk 0:03:01.1]} 3... Nf6 {[%clk 0:02:57.5]}
4. e5 {[%clk 0:02:58.6]} 4... Ne4 {[%clk 0:02:57.1]} 5. Ne2 {[%clk 0:02:56.2]}
5... Qb6 {[%clk 0:02:56.6]} 6. d4 {[%clk 0:02:54.9]} 6... e6 {[%clk 0:02:40.4]}
7. Ng3 {[%clk 0:02:51.9]} 7... Nxg3 {[%clk 0:02:37.5]} 8. hxg3 {[%clk
0:02:47.7]} 8... c5 {[%clk 0:02:36]} 9. Bd3 {[%clk 0:02:31.8]} 9... Nc6 {[%clk
0:02:27.1]} 10. dxc5 {[%clk 0:02:26.3]} 10... Bxc5 {[%clk 0:02:25.6]} 11. O-O
{[%clk 0:02:26.5]} 11... Bd7 {[%clk 0:02:15.2]} 12. Qe2 {[%clk 0:02:08.8]} 12...
Nd4 {[%clk 0:02:11]} 13. Nxd4 {[%clk 0:02:04.4]} 13... Bxd4 {[%clk 0:02:11.9]}
14. c3 {[%clk 0:02:03.7]} 14... Bc5 {[%clk 0:02:11.5]} 15. b4 {[%clk 0:02:04.1]}
15... Be7 {[%clk 0:02:10.7]} 16. Be3 {[%clk 0:02:03.9]} 16... Qc7 {[%clk
0:02:10.7]} 17. Bd4 {[%clk 0:01:57.5]} 17... O-O {[%clk 0:02:08.8]} 18. Rac1
{[%clk 0:01:45.8]} 18... a5 {[%clk 0:02:01]} 19. c4 {[%clk 0:01:31.9]} 19...
dxc4 {[%clk 0:01:47.5]} 20. Bxc4 {[%clk 0:01:31.4]} 20... Qb8 {[%clk 0:01:43.7]}
21. b5 {[%clk 0:01:23.3]} 21... Rc8 {[%clk 0:01:34.3]} 22. Rfd1 {[%clk
0:01:22.5]} 22... a4 {[%clk 0:01:29.2]} 23. Bb6 {[%clk 0:01:12.2]} 23... Be8
{[%clk 0:01:27.6]} 24. Bd3 {[%clk 0:01:04.9]} 24... Ba3 {[%clk 0:01:12.9]} 25.
Rxc8 {[%clk 0:01:02.9]} 25... Qxc8 {[%clk 0:01:13.8]} 26. Be4 {[%clk 0:00:48]}
26... Bc5 {[%clk 0:01:07.6]} 27. Rd8 {[%clk 0:00:25.8]} 27... Bxb6 {[%clk
0:00:51.7]} 28. Rxc8 {[%clk 0:00:25.9]} 28... Rxc8 {[%clk 0:00:52.6]} 29. Bxb7
{[%clk 0:00:25.3]} 29... Rc1+ {[%clk 0:00:52.2]} 30. Kh2 {[%clk 0:00:25.1]}
30... h5 {[%clk 0:00:34.4]} 31. Bc6 {[%clk 0:00:24.3]} 31... Bxf2 {[%clk
0:00:20.5]} 32. Qxf2 {[%clk 0:00:16.7]} 32... Bxc6 {[%clk 0:00:19.4]} 33. bxc6
{[%clk 0:00:16]} 33... Rxc6 {[%clk 0:00:20]} 34. Qd4 {[%clk 0:00:13]} 34... Ra6
{[%clk 0:00:13.7]} 35. Qd8+ {[%clk 0:00:13]} 35... Kh7 {[%clk 0:00:13.2]} 36.
Qc7 {[%clk 0:00:13.3]} 36... Kg6 {[%clk 0:00:12.5]} 37. Qb7 {[%clk 0:00:12.4]}
37... Ra5 {[%clk 0:00:11.6]} 38. Qe4+ {[%clk 0:00:12.1]} 38... Kh6 {[%clk
0:00:10.3]} 39. Qe3+ {[%clk 0:00:11.2]} 39... Kg6 {[%clk 0:00:09.6]} 40. Qd3+
{[%clk 0:00:11.6]} 40... f5 {[%clk 0:00:06.7]} 41. exf6+ {[%clk 0:00:11.8]}
41... Kxf6 {[%clk 0:00:06.9]} 42. Qc3+ {[%clk 0:00:11.8]} 42... Re5 {[%clk
0:00:07.1]} 43. Qd4 {[%clk 0:00:12.2]} 43... a3 {[%clk 0:00:06.2]} 44. Qc3
{[%clk 0:00:12.3]} 44... Kf5 {[%clk 0:00:06.6]} 45. Qf3+ {[%clk 0:00:11.5]}
45... Kg6 {[%clk 0:00:05.4]} 46. Qxa3 {[%clk 0:00:12.1]} 1-0

[Event "*** Titled Tuesday Blitz"]
[Site "Chess.com"]
[Date "2020.11.03"]
[Round "11"]
[White "RobertoJBM"]
[Black "Mikhail_Golubev"]
[Result "1-0"]
[WhiteElo "2796"]
[BlackElo "2579"]
[TimeControl "180+1"]
[EndTime "12:10:52 PST"]
[Termination "RobertoJBM won by resignation"]

1. d4 {[%clk 0:03:00.9]} 1... Nf6 {[%clk 0:02:59.2]} 2. c4 {[%clk 0:03:00.8]}
2... g6 {[%clk 0:02:59.4]} 3. Nc3 {[%clk 0:03:00.4]} 3... Bg7 {[%clk 0:02:59.9]}
4. e4 {[%clk 0:02:59.2]} 4... d6 {[%clk 0:03:00.1]} 5. Nf3 {[%clk 0:02:58.5]}
5... O-O {[%clk 0:02:59.9]} 6. Be2 {[%clk 0:02:58.3]} 6... e5 {[%clk 0:02:59.8]}
7. O-O {[%clk 0:02:57.4]} 7... Nc6 {[%clk 0:02:58.8]} 8. d5 {[%clk 0:02:57.6]}
8... Ne7 {[%clk 0:02:58.9]} 9. b4 {[%clk 0:02:58]} 9... Ne8 {[%clk 0:02:57.4]}
10. c5 {[%clk 0:02:56.9]} 10... f5 {[%clk 0:02:57]} 11. Nd2 {[%clk 0:02:56.6]}
11... Nf6 {[%clk 0:02:56.8]} 12. f3 {[%clk 0:02:46.8]} 12... f4 {[%clk
0:02:56.6]} 13. Nc4 {[%clk 0:02:44.9]} 13... g5 {[%clk 0:02:55.6]} 14. a4 {[%clk
0:02:41.2]} 14... Ng6 {[%clk 0:02:53.8]} 15. Ba3 {[%clk 0:02:40.7]} 15... h5
{[%clk 0:02:50.3]} 16. b5 {[%clk 0:02:40.1]} 16... dxc5 {[%clk 0:02:45.8]} 17.
Bxc5 {[%clk 0:02:39.7]} 17... Rf7 {[%clk 0:02:46.2]} 18. Qb3 {[%clk 0:02:21.4]}
18... g4 {[%clk 0:02:41.1]} 19. Rfd1 {[%clk 0:02:16.8]} 19... Nd7 {[%clk
0:01:27]} 20. Bb4 {[%clk 0:02:08.5]} 20... Qh4 {[%clk 0:01:12]} 21. d6 {[%clk
0:02:02.8]} 21... g3 {[%clk 0:01:10.3]} 22. h3 {[%clk 0:02:03.1]} 22... Nf6
{[%clk 0:00:55.7]} 23. Bf1 {[%clk 0:01:24.4]} 23... Be6 {[%clk 0:00:36.1]} 24.
Nd5 {[%clk 0:00:32.1]} 24... cxd6 {[%clk 0:00:36.1]} 25. Nxd6 {[%clk 0:00:29.5]}
25... Rd7 {[%clk 0:00:26.6]} 26. Nf5 {[%clk 0:00:25]} 26... Qg5 {[%clk
0:00:26.8]} 27. Bc4 {[%clk 0:00:21.6]} 27... Nxd5 {[%clk 0:00:22]} 28. Bxd5
{[%clk 0:00:20.6]} 28... Rxd5 {[%clk 0:00:20.7]} 29. Rxd5 {[%clk 0:00:21.5]}
29... Bxd5 {[%clk 0:00:17.8]} 30. Qxd5+ {[%clk 0:00:21.3]} 30... Kh7 {[%clk
0:00:15.3]} 31. Qxb7 {[%clk 0:00:21.7]} 31... Qf6 {[%clk 0:00:15.6]} 32. Rd1
{[%clk 0:00:20.3]} 32... Qb6+ {[%clk 0:00:14.7]} 33. Qxb6 {[%clk 0:00:19.6]}
33... axb6 {[%clk 0:00:15.6]} 34. Rd7 {[%clk 0:00:19.9]} 34... Rxa4 {[%clk
0:00:15.8]} 35. Rxg7+ {[%clk 0:00:19.7]} 35... Kh8 {[%clk 0:00:16.1]} 36. Bc3
{[%clk 0:00:19.2]} 36... Rc4 {[%clk 0:00:15.3]} 37. Rxg6 {[%clk 0:00:17.6]}
37... Rxc3 {[%clk 0:00:14.7]} 38. Kf1 {[%clk 0:00:18.1]} 38... Rc1+ {[%clk
0:00:14.9]} 39. Ke2 {[%clk 0:00:18.5]} 39... Rc2+ {[%clk 0:00:15.6]} 40. Kd3
{[%clk 0:00:19]} 40... Rxg2 {[%clk 0:00:16.2]} 41. Rg5 {[%clk 0:00:19.7]} 41...
Rf2 {[%clk 0:00:16.1]} 42. Rxh5+ {[%clk 0:00:19.6]} 42... Kg8 {[%clk 0:00:14.6]}
43. Nh4 {[%clk 0:00:20.2]} 43... Rh2 {[%clk 0:00:14.6]} 44. Rg5+ {[%clk
0:00:20.3]} 44... Kf7 {[%clk 0:00:13.9]} 45. Rxe5 {[%clk 0:00:20.5]} 45... Rxh3
{[%clk 0:00:12.9]} 46. Rf5+ {[%clk 0:00:21.1]} 46... Ke7 {[%clk 0:00:12]} 47.
Rxf4 {[%clk 0:00:22]} 47... Rh2 {[%clk 0:00:09.7]} 48. Rg4 {[%clk 0:00:21.9]}
48... Ke6 {[%clk 0:00:08.1]} 49. Ke3 {[%clk 0:00:21.3]} 49... Kd6 {[%clk
0:00:07.9]} 50. Nf5+ {[%clk 0:00:20.8]} 50... Kc5 {[%clk 0:00:07.9]} 51. Nxg3
{[%clk 0:00:21.6]} 1-0

[Event "*** Titled Tuesday Blitz"]
[Site "Chess.com"]
[Date "2020.11.03"]
[Round "11"]
[White "redbaron8888"]
[Black "PaulfromSPb"]
[Result "0-1"]
[WhiteElo "2544"]
[BlackElo "2705"]
[TimeControl "180+1"]
[EndTime "12:10:52 PST"]
[Termination "PaulfromSPb won on time"]

1. d4 {[%clk 0:02:46.3]} 1... Nf6 {[%clk 0:01:13.5]} 2. Bg5 {[%clk 0:02:44.6]}
2... c5 {[%clk 0:01:12.4]} 3. d5 {[%clk 0:02:44]} 3... d6 {[%clk 0:01:11.7]} 4.
Nc3 {[%clk 0:02:43.3]} 4... Nbd7 {[%clk 0:01:12.6]} 5. e4 {[%clk 0:02:41.2]}
5... g6 {[%clk 0:01:13.2]} 6. f4 {[%clk 0:02:39.2]} 6... Bg7 {[%clk 0:01:13.7]}
7. Nf3 {[%clk 0:02:37.2]} 7... O-O {[%clk 0:01:14.2]} 8. Be2 {[%clk 0:02:32.6]}
8... a6 {[%clk 0:01:14.6]} 9. a4 {[%clk 0:02:31.7]} 9... Re8 {[%clk 0:01:14.4]}
10. O-O {[%clk 0:02:30.7]} 10... h6 {[%clk 0:01:14.8]} 11. Bh4 {[%clk
0:02:30.3]} 11... Qc7 {[%clk 0:01:15.3]} 12. Qd2 {[%clk 0:02:23.1]} 12... e6
{[%clk 0:01:15.3]} 13. dxe6 {[%clk 0:02:21.9]} 13... Rxe6 {[%clk 0:01:16.2]} 14.
Bc4 {[%clk 0:02:15.4]} 14... Re8 {[%clk 0:01:10.2]} 15. Rae1 {[%clk 0:02:10]}
15... Nb6 {[%clk 0:01:07.7]} 16. Ba2 {[%clk 0:02:06]} 16... Be6 {[%clk
0:01:05.8]} 17. Bxe6 {[%clk 0:01:59.2]} 17... Rxe6 {[%clk 0:01:06.7]} 18. f5
{[%clk 0:01:59]} 18... gxf5 {[%clk 0:01:04.1]} 19. exf5 {[%clk 0:01:59.9]} 19...
Rxe1 {[%clk 0:01:02.7]} 20. Rxe1 {[%clk 0:02:00.8]} 20... Qd7 {[%clk 0:00:57]}
21. Bxf6 {[%clk 0:01:46.3]} 21... Bxf6 {[%clk 0:00:57.9]} 22. Qxh6 {[%clk
0:01:46.5]} 22... Qxf5 {[%clk 0:00:56.9]} 23. Ne4 {[%clk 0:01:32.6]} 23... Bxb2
{[%clk 0:00:55.4]} 24. Qxd6 {[%clk 0:01:28.5]} 24... Nxa4 {[%clk 0:00:51.3]} 25.
Ng3 {[%clk 0:01:14.4]} 25... Qg6 {[%clk 0:00:48.4]} 26. Qd7 {[%clk 0:01:11.2]}
26... b5 {[%clk 0:00:44.8]} 27. Nf5 {[%clk 0:01:05.8]} 27... Bf6 {[%clk
0:00:38.8]} 28. Ne5 {[%clk 0:00:53.9]} 28... Qh5 {[%clk 0:00:32.4]} 29. Re3
{[%clk 0:00:35.2]} 29... Rd8 {[%clk 0:00:16.7]} 30. Rg3+ {[%clk 0:00:19.5]}
30... Kf8 {[%clk 0:00:16.2]} 31. Rh3 {[%clk 0:00:07.7]} 31... Qd1+ {[%clk
0:00:05.9]} 32. Qxd1 {[%clk 0:00:05.1]} 32... Rxd1+ {[%clk 0:00:06.8]} 33. Kf2
{[%clk 0:00:05.6]} 33... Bxe5 {[%clk 0:00:07.1]} 34. Rh6 {[%clk 0:00:05.5]}
34... Rd2+ {[%clk 0:00:06.2]} 35. Ke3 {[%clk 0:00:05.3]} 35... Rxc2 {[%clk
0:00:06.2]} 36. Rxa6 {[%clk 0:00:05.1]} 36... Ke8 {[%clk 0:00:06.5]} 37. Ra8+
{[%clk 0:00:04.1]} 37... Kd7 {[%clk 0:00:06.5]} 38. Ra7+ {[%clk 0:00:05]} 38...
Ke6 {[%clk 0:00:06.9]} 39. g4 {[%clk 0:00:05.9]} 39... Rxh2 {[%clk 0:00:05.9]}
40. Kf3 {[%clk 0:00:02.5]} 40... Kd5 {[%clk 0:00:05.7]} 41. Rxf7 {[%clk
0:00:01.7]} 41... b4 {[%clk 0:00:06.2]} 42. Ne3+ {[%clk 0:00:01.3]} 42... Kc6
{[%clk 0:00:05.9]} 43. Ra7 {[%clk 0:00:01.5]} 43... Bd4 {[%clk 0:00:05.8]} 0-1

[Event "*** Titled Tuesday Blitz"]
[Site "Chess.com"]
[Date "2020.11.03"]
[Round "11"]
[White "Grandelicious"]
[Black "sokidze"]
[Result "1-0"]
[WhiteElo "2793"]
[BlackElo "2563"]
[TimeControl "180+1"]
[EndTime "12:10:53 PST"]
[Termination "Grandelicious won by resignation"]

1. Nf3 {[%clk 0:03:00.9]} 1... c5 {[%clk 0:02:59.1]} 2. e3 {[%clk 0:02:58.3]}
2... Nc6 {[%clk 0:02:57.7]} 3. d4 {[%clk 0:02:58.5]} 3... cxd4 {[%clk 0:02:58]}
4. exd4 {[%clk 0:02:58.7]} 4... d5 {[%clk 0:02:58.5]} 5. Nbd2 {[%clk 0:02:58.3]}
5... Bf5 {[%clk 0:02:56.3]} 6. Bb5 {[%clk 0:02:55.9]} 6... a6 {[%clk 0:02:47.9]}
7. Bxc6+ {[%clk 0:02:51.7]} 7... bxc6 {[%clk 0:02:48.8]} 8. O-O {[%clk
0:02:52.6]} 8... e6 {[%clk 0:02:48.2]} 9. c4 {[%clk 0:02:52.7]} 9... Nf6 {[%clk
0:02:44.5]} 10. Qa4 {[%clk 0:02:50.1]} 10... Qb6 {[%clk 0:02:35.6]} 11. Ne5
{[%clk 0:02:43.9]} 11... Rc8 {[%clk 0:02:35]} 12. Nb3 {[%clk 0:02:31]} 12...
dxc4 {[%clk 0:02:24]} 13. Qxc4 {[%clk 0:02:21.6]} 13... Qb5 {[%clk 0:02:13.1]}
14. Qc3 {[%clk 0:02:17.5]} 14... Ne4 {[%clk 0:02:07.9]} 15. Qf3 {[%clk
0:02:09.8]} 15... Nf6 {[%clk 0:01:44.4]} 16. Bg5 {[%clk 0:01:53.7]} 16... Be7
{[%clk 0:01:40.8]} 17. Rfc1 {[%clk 0:01:48.2]} 17... Be4 {[%clk 0:01:32.5]} 18.
Qf4 {[%clk 0:01:44.8]} 18... Bd5 {[%clk 0:01:30]} 19. Nc5 {[%clk 0:01:42.7]}
19... h6 {[%clk 0:01:15.5]} 20. Bxf6 {[%clk 0:01:39.5]} 20... Bxf6 {[%clk
0:01:16.4]} 21. b3 {[%clk 0:01:19.4]} 21... O-O {[%clk 0:00:46.8]} 22. h4 {[%clk
0:01:19.6]} 22... Bxe5 {[%clk 0:00:35.6]} 23. dxe5 {[%clk 0:01:20.5]} 23... Qe2
{[%clk 0:00:33.4]} 24. Rc3 {[%clk 0:01:15.2]} 24... Qh5 {[%clk 0:00:26.2]} 25.
Rg3 {[%clk 0:01:13.3]} 25... Rc7 {[%clk 0:00:21.7]} 26. Nxa6 {[%clk 0:01:09.5]}
26... Ra7 {[%clk 0:00:20.6]} 27. Nc5 {[%clk 0:01:09.9]} 27... Rfa8 {[%clk
0:00:20.8]} 28. a4 {[%clk 0:01:07.8]} 28... Kh7 {[%clk 0:00:19.1]} 29. b4 {[%clk
0:01:01.7]} 29... Rg8 {[%clk 0:00:12.3]} 30. Rb1 {[%clk 0:00:52.9]} 30... g5
{[%clk 0:00:12.4]} 31. hxg5 {[%clk 0:00:53.6]} 31... hxg5 {[%clk 0:00:13.3]} 32.
Qe3 {[%clk 0:00:45.2]} 32... g4 {[%clk 0:00:12.4]} 33. Nxe6 {[%clk 0:00:37.7]}
33... Bxe6 {[%clk 0:00:08.3]} 34. Qxa7 {[%clk 0:00:37.7]} 34... Rg6 {[%clk
0:00:08.2]} 35. f3 {[%clk 0:00:20.4]} 35... gxf3 {[%clk 0:00:07.7]} 36. Rxg6
{[%clk 0:00:18.1]} 36... Qxg6 {[%clk 0:00:06.5]} 37. Rb2 {[%clk 0:00:18.6]}
37... Bd5 {[%clk 0:00:02.3]} 38. Qe3 {[%clk 0:00:17.4]} 38... fxg2 {[%clk
0:00:02.8]} 39. Qh3+ {[%clk 0:00:16.4]} 39... Kg7 {[%clk 0:00:02.9]} 40. Qh4
{[%clk 0:00:16.4]} 40... Qd3 {[%clk 0:00:02.8]} 41. Qg5+ {[%clk 0:00:10.1]}
41... Kf8 {[%clk 0:00:03.2]} 42. Qd8+ {[%clk 0:00:08.7]} 42... Kg7 {[%clk
0:00:03.7]} 43. Rxg2+ {[%clk 0:00:09.3]} 43... Bxg2 {[%clk 0:00:02.4]} 44. Qxd3
{[%clk 0:00:09.6]} 1-0

[Event "*** Titled Tuesday Blitz"]
[Site "Chess.com"]
[Date "2020.11.03"]
[Round "11"]
[White "Zq1"]
[Black "Sven_Tica"]
[Result "1-0"]
[WhiteElo "2554"]
[BlackElo "2691"]
[TimeControl "180+1"]
[EndTime "12:10:54 PST"]
[Termination "Zq1 won on time"]

1. d4 {[%clk 0:03:00.9]} 1... d5 {[%clk 0:02:59.9]} 2. c4 {[%clk 0:03:00.3]}
2... e6 {[%clk 0:03:00.5]} 3. Nc3 {[%clk 0:02:59.6]} 3... Nf6 {[%clk 0:03:00.9]}
4. Nf3 {[%clk 0:02:58.7]} 4... Nbd7 {[%clk 0:03:00.7]} 5. cxd5 {[%clk
0:02:54.8]} 5... exd5 {[%clk 0:03:00.3]} 6. Bf4 {[%clk 0:02:54.8]} 6... c6
{[%clk 0:02:59.6]} 7. e3 {[%clk 0:02:54.9]} 7... Be7 {[%clk 0:02:59.7]} 8. Bd3
{[%clk 0:02:53.9]} 8... O-O {[%clk 0:02:59.1]} 9. h3 {[%clk 0:02:54]} 9... Re8
{[%clk 0:02:58.8]} 10. O-O {[%clk 0:02:53.8]} 10... Nf8 {[%clk 0:02:59.3]} 11.
Rb1 {[%clk 0:02:53.4]} 11... Bd6 {[%clk 0:02:59.5]} 12. Bxd6 {[%clk 0:02:52.1]}
12... Qxd6 {[%clk 0:03:00.4]} 13. b4 {[%clk 0:02:50.3]} 13... Ne4 {[%clk
0:02:43.7]} 14. Qc2 {[%clk 0:02:36.3]} 14... Qg6 {[%clk 0:02:38.4]} 15. Ne5
{[%clk 0:02:27.5]} 15... Qh5 {[%clk 0:02:32.9]} 16. Nxe4 {[%clk 0:02:20.3]}
16... dxe4 {[%clk 0:02:26.7]} 17. Bxe4 {[%clk 0:02:20.5]} 17... f6 {[%clk
0:02:21.8]} 18. Bf3 {[%clk 0:02:12.8]} 18... Qg5 {[%clk 0:02:19]} 19. Nd3 {[%clk
0:02:01.9]} 19... Bxh3 {[%clk 0:02:16.1]} 20. b5 {[%clk 0:02:01.6]} 20... Rac8
{[%clk 0:02:07.2]} 21. bxc6 {[%clk 0:02:01]} 21... bxc6 {[%clk 0:02:08.1]} 22.
Rb7 {[%clk 0:01:57.6]} 22... Bf5 {[%clk 0:02:04.5]} 23. Rxa7 {[%clk 0:01:48.7]}
23... c5 {[%clk 0:01:56.5]} 24. dxc5 {[%clk 0:01:43.6]} 24... Ne6 {[%clk
0:01:53.8]} 25. Qc4 {[%clk 0:01:34.5]} 25... Kh8 {[%clk 0:01:48.6]} 26. c6
{[%clk 0:01:29.3]} 26... Red8 {[%clk 0:01:37.3]} 27. Nf4 {[%clk 0:01:26.1]}
27... Nd4 {[%clk 0:01:24.5]} 28. exd4 {[%clk 0:01:17.4]} 28... Qxf4 {[%clk
0:01:24.4]} 29. Rd1 {[%clk 0:01:14]} 29... Bg6 {[%clk 0:01:04]} 30. Qc5 {[%clk
0:01:08]} 30... Re8 {[%clk 0:00:42.1]} 31. d5 {[%clk 0:00:54.8]} 31... Re5
{[%clk 0:00:42]} 32. Qc3 {[%clk 0:00:34.2]} 32... h5 {[%clk 0:00:32.5]} 33. d6
{[%clk 0:00:33.3]} 33... Be4 {[%clk 0:00:07.9]} 34. Bxe4 {[%clk 0:00:23.9]}
34... Qxe4 {[%clk 0:00:08.8]} 35. d7 {[%clk 0:00:20.6]} 35... Rg8 {[%clk
0:00:09]} 36. d8=Q {[%clk 0:00:16.7]} 36... Rg5 {[%clk 0:00:09.4]} 37. Qxg8+
{[%clk 0:00:11]} 37... Kxg8 {[%clk 0:00:09.3]} 38. f3 {[%clk 0:00:10.5]} 38...
Qe2 {[%clk 0:00:08.6]} 39. g4 {[%clk 0:00:05.3]} 39... hxg4 {[%clk 0:00:03.3]}
40. Qd2 {[%clk 0:00:04.9]} 40... gxf3+ {[%clk 0:00:02.8]} 41. Qxg5 {[%clk
0:00:01.1]} 1-0

[Event "*** Titled Tuesday Blitz"]
[Site "Chess.com"]
[Date "2020.11.03"]
[Round "11"]
[White "Neftegor"]
[Black "vovachesss"]
[Result "1/2-1/2"]
[WhiteElo "2448"]
[BlackElo "2649"]
[TimeControl "180+1"]
[EndTime "12:10:56 PST"]
[Termination "Game drawn by stalemate"]

1. d4 {[%clk 0:03:00.9]} 1... Nc6 {[%clk 0:02:53.8]} 2. Nf3 {[%clk 0:02:59.8]}
2... d6 {[%clk 0:02:54]} 3. c4 {[%clk 0:02:59.4]} 3... g6 {[%clk 0:02:54.3]} 4.
Nc3 {[%clk 0:02:59.2]} 4... Bg7 {[%clk 0:02:54.8]} 5. g3 {[%clk 0:02:57.5]} 5...
e5 {[%clk 0:02:53.7]} 6. d5 {[%clk 0:02:55.3]} 6... Nce7 {[%clk 0:02:50]} 7. Bg2
{[%clk 0:02:55.3]} 7... f5 {[%clk 0:02:49.8]} 8. e4 {[%clk 0:02:54.3]} 8... Nf6
{[%clk 0:02:49.2]} 9. O-O {[%clk 0:02:51.6]} 9... h6 {[%clk 0:02:47]} 10. Ne1
{[%clk 0:02:51.2]} 10... fxe4 {[%clk 0:02:45.1]} 11. Nxe4 {[%clk 0:02:50.3]}
11... Nxe4 {[%clk 0:02:45.9]} 12. Bxe4 {[%clk 0:02:50.3]} 12... Bf5 {[%clk
0:02:46.8]} 13. f3 {[%clk 0:02:48.9]} 13... Qd7 {[%clk 0:02:44.6]} 14. Nd3
{[%clk 0:02:44.1]} 14... O-O {[%clk 0:02:41.6]} 15. Nf2 {[%clk 0:02:41.8]} 15...
c6 {[%clk 0:02:41.4]} 16. Qd3 {[%clk 0:02:41]} 16... cxd5 {[%clk 0:02:35.9]} 17.
cxd5 {[%clk 0:02:40.8]} 17... Rac8 {[%clk 0:02:36]} 18. Be3 {[%clk 0:02:40.1]}
18... Qa4 {[%clk 0:02:24.6]} 19. b3 {[%clk 0:02:32]} 19... Qa5 {[%clk
0:02:20.6]} 20. Bd2 {[%clk 0:02:22.2]} 20... Qa3 {[%clk 0:02:11.2]} 21. Qb5
{[%clk 0:02:08.7]} 21... Qb2 {[%clk 0:01:52.9]} 22. Be3 {[%clk 0:01:57.6]} 22...
Rc3 {[%clk 0:01:43.1]} 23. Bxa7 {[%clk 0:01:50.4]} 23... Bxe4 {[%clk 0:01:34.9]}
24. fxe4 {[%clk 0:01:43.5]} 24... Rcf3 {[%clk 0:01:15.5]} 25. Rae1 {[%clk
0:01:22]} 25... Qxa2 {[%clk 0:01:09.4]} 26. Qxb7 {[%clk 0:01:21.9]} 26... Nc8
{[%clk 0:01:00.8]} 27. Ra1 {[%clk 0:01:07.8]} 27... Qe2 {[%clk 0:00:53.6]} 28.
Rae1 {[%clk 0:01:04.1]} 28... Qa2 {[%clk 0:00:44.2]} 29. Be3 {[%clk 0:01:02.4]}
29... h5 {[%clk 0:00:37.9]} 30. Qb5 {[%clk 0:00:51.5]} 30... h4 {[%clk
0:00:34.6]} 31. Qe2 {[%clk 0:00:50.8]} 31... Qxb3 {[%clk 0:00:31]} 32. gxh4
{[%clk 0:00:48.9]} 32... Nb6 {[%clk 0:00:21.4]} 33. Rb1 {[%clk 0:00:44.9]} 33...
Rxe3 {[%clk 0:00:19.3]} 34. Rxb3 {[%clk 0:00:42.3]} 34... Rxe2 {[%clk
0:00:19.8]} 35. Rxb6 {[%clk 0:00:42]} 35... Bh6 {[%clk 0:00:20.1]} 36. Rxd6
{[%clk 0:00:39]} 36... Kh7 {[%clk 0:00:07.9]} 37. Rd7+ {[%clk 0:00:37.8]} 37...
Kh8 {[%clk 0:00:08.5]} 38. Ng4 {[%clk 0:00:37.8]} 38... Rxf1+ {[%clk 0:00:02.5]}
39. Kxf1 {[%clk 0:00:37.5]} 39... Rxe4 {[%clk 0:00:02.5]} 40. Nxh6 {[%clk
0:00:36.2]} 40... Rxh4 {[%clk 0:00:03.4]} 41. Nf7+ {[%clk 0:00:33.3]} 41... Kg8
{[%clk 0:00:03.5]} 42. Nxe5 {[%clk 0:00:33.4]} 42... Rxh2 {[%clk 0:00:03.8]} 43.
Nxg6 {[%clk 0:00:32.4]} 43... Rf2+ {[%clk 0:00:01.5]} 44. Ke1 {[%clk 0:00:30.4]}
44... Re2+ {[%clk 0:00:01.6]} 45. Kd1 {[%clk 0:00:29.4]} 45... Rd2+ {[%clk
0:00:02.1]} 46. Kc1 {[%clk 0:00:29.5]} 46... Rc2+ {[%clk 0:00:02.4]} 47. Kb1
{[%clk 0:00:29.7]} 47... Rb2+ {[%clk 0:00:03]} 48. Ka1 {[%clk 0:00:29.9]} 48...
Ra2+ {[%clk 0:00:03.5]} 49. Kb1 {[%clk 0:00:30.2]} 49... Rb2+ {[%clk 0:00:04.4]}
50. Kc1 {[%clk 0:00:30.6]} 50... Rc2+ {[%clk 0:00:05]} 51. Kd1 {[%clk 0:00:31]}
51... Rd2+ {[%clk 0:00:05.6]} 52. Ke1 {[%clk 0:00:31.4]} 52... Re2+ {[%clk
0:00:06.2]} 53. Kf1 {[%clk 0:00:31.8]} 53... Rf2+ {[%clk 0:00:06.8]} 54. Kg1
{[%clk 0:00:32.1]} 54... Rg2+ {[%clk 0:00:07.2]} 55. Kh1 {[%clk 0:00:32.4]}
55... Rh2+ {[%clk 0:00:07.6]} 56. Kxh2 {[%clk 0:00:31.4]} 1/2-1/2

[Event "*** Titled Tuesday Blitz"]
[Site "Chess.com"]
[Date "2020.11.03"]
[Round "11"]
[White "MariaFominykh"]
[Black "BegmuratovKh2010"]
[Result "0-1"]
[WhiteElo "2341"]
[BlackElo "2466"]
[TimeControl "180+1"]
[EndTime "12:10:58 PST"]
[Termination "BegmuratovKh2010 won on time"]

1. d4 {[%clk 0:03:00.9]} 1... Nf6 {[%clk 0:02:59.4]} 2. c4 {[%clk 0:03:01]} 2...
g6 {[%clk 0:02:59.4]} 3. Nc3 {[%clk 0:03:01]} 3... Bg7 {[%clk 0:02:59.3]} 4. Nf3
{[%clk 0:03:01]} 4... O-O {[%clk 0:02:59.7]} 5. g3 {[%clk 0:03:01.3]} 5... d6
{[%clk 0:02:59.9]} 6. Bg2 {[%clk 0:03:01.4]} 6... Nbd7 {[%clk 0:02:58.9]} 7. O-O
{[%clk 0:03:01.8]} 7... c6 {[%clk 0:02:49.2]} 8. Qc2 {[%clk 0:03:00.9]} 8... Qc7
{[%clk 0:02:48.3]} 9. h3 {[%clk 0:03:00]} 9... e5 {[%clk 0:02:48.1]} 10. Rd1
{[%clk 0:02:56.7]} 10... exd4 {[%clk 0:02:44.5]} 11. Nxd4 {[%clk 0:02:56.5]}
11... Ne5 {[%clk 0:02:43.4]} 12. b3 {[%clk 0:02:55.6]} 12... a6 {[%clk
0:02:25.3]} 13. Ba3 {[%clk 0:02:42.7]} 13... c5 {[%clk 0:02:14.4]} 14. Nf3
{[%clk 0:02:41.9]} 14... Bf5 {[%clk 0:02:02.1]} 15. Qd2 {[%clk 0:02:28]} 15...
Rad8 {[%clk 0:01:49.9]} 16. Nh4 {[%clk 0:02:22.8]} 16... Be6 {[%clk 0:01:43.3]}
17. Bb2 {[%clk 0:02:17.2]} 17... Rfe8 {[%clk 0:01:34.8]} 18. Nd5 {[%clk
0:01:57.6]} 18... Bxd5 {[%clk 0:01:23]} 19. cxd5 {[%clk 0:01:48.8]} 19... b5
{[%clk 0:01:21]} 20. e4 {[%clk 0:01:40.1]} 20... Ned7 {[%clk 0:01:02.6]} 21. Re1
{[%clk 0:01:39.7]} 21... Re7 {[%clk 0:00:51.4]} 22. g4 {[%clk 0:01:26.1]} 22...
Rde8 {[%clk 0:00:46.6]} 23. f3 {[%clk 0:01:19.5]} 23... h6 {[%clk 0:00:40.2]}
24. Bf1 {[%clk 0:01:03]} 24... Qb8 {[%clk 0:00:23.6]} 25. a4 {[%clk 0:01:00.2]}
25... h5 {[%clk 0:00:18.8]} 26. axb5 {[%clk 0:00:56.4]} 26... axb5 {[%clk
0:00:19.7]} 27. Ra5 {[%clk 0:00:37.8]} 27... c4 {[%clk 0:00:14.8]} 28. bxc4
{[%clk 0:00:25.6]} 28... bxc4 {[%clk 0:00:14.8]} 29. Bxc4 {[%clk 0:00:21.2]}
29... Nxe4 {[%clk 0:00:13.7]} 30. fxe4 {[%clk 0:00:13.1]} 30... Qxb2 {[%clk
0:00:09]} 31. Qxb2 {[%clk 0:00:11.8]} 31... Bxb2 {[%clk 0:00:09.9]} 32. Rb1
{[%clk 0:00:11]} 32... Bd4+ {[%clk 0:00:09.3]} 33. Kg2 {[%clk 0:00:11]} 33...
Rxe4 {[%clk 0:00:10.2]} 34. Nf3 {[%clk 0:00:09.1]} 34... hxg4 {[%clk 0:00:09.7]}
35. Nxd4 {[%clk 0:00:08.1]} 35... Rxd4 {[%clk 0:00:10.6]} 36. Bb5 {[%clk
0:00:07.6]} 36... Rd8 {[%clk 0:00:10.3]} 37. hxg4 {[%clk 0:00:06.3]} 37... Rxd5
{[%clk 0:00:09.6]} 38. Rb3 {[%clk 0:00:02.8]} 38... Ne5 {[%clk 0:00:09.1]} 39.
Ra7 {[%clk 0:00:01.9]} 39... Rd2+ {[%clk 0:00:08.2]} 40. Kg3 {[%clk 0:00:01.5]}
40... Kg7 {[%clk 0:00:07.8]} 41. g5 {[%clk 0:00:01.5]} 41... Rh8 {[%clk
0:00:07.7]} 42. Rb4 {[%clk 0:00:01.8]} 42... Rhh2 {[%clk 0:00:07.5]} 0-1